[Event "*** SCC Grand Prix: Titled Tuesday Blitz"]
[Site "Chess.com"]
[Date "2020.07.07"]
[Round "9"]
[White "Irishchessman16"]
[Black "Varshi_chess"]
[Result "0-1"]
[WhiteElo "2398"]
[BlackElo "2285"]
[TimeControl "180+1"]
[EndTime "11:47:57 PDT"]
[Termination "Varshi_chess won on time"]

1. e4 {[%clk 0:03:00.9]} 1... c5 {[%clk 0:02:59]} 2. Nf3 {[%clk 0:03:00.5]} 2...
d6 {[%clk 0:02:59]} 3. d4 {[%clk 0:03:00.3]} 3... cxd4 {[%clk 0:02:58]} 4. Nxd4
{[%clk 0:03:01.2]} 4... Nf6 {[%clk 0:02:58.2]} 5. Nc3 {[%clk 0:03:01.9]} 5... a6
{[%clk 0:02:57.8]} 6. h3 {[%clk 0:03:02.6]} 6... e6 {[%clk 0:02:57.9]} 7. g4
{[%clk 0:03:02.3]} 7... b5 {[%clk 0:02:57.7]} 8. Bg2 {[%clk 0:02:56.8]} 8... Bb7
{[%clk 0:02:56.7]} 9. g5 {[%clk 0:02:52.8]} 9... Nfd7 {[%clk 0:02:56.7]} 10. O-O
{[%clk 0:02:51.1]} 10... Be7 {[%clk 0:02:56.7]} 11. h4 {[%clk 0:02:49.6]} 11...
O-O {[%clk 0:02:56.8]} 12. f4 {[%clk 0:02:48.5]} 12... Nc6 {[%clk 0:02:56.8]}
13. Nxc6 {[%clk 0:02:36]} 13... Bxc6 {[%clk 0:02:55.3]} 14. Ne2 {[%clk
0:02:36.9]} 14... Nc5 {[%clk 0:02:53.4]} 15. Ng3 {[%clk 0:02:25]} 15... Rc8
{[%clk 0:02:48.3]} 16. f5 {[%clk 0:02:22.3]} 16... exf5 {[%clk 0:02:45.8]} 17.
exf5 {[%clk 0:02:21.5]} 17... Bxg2 {[%clk 0:02:43.2]} 18. Kxg2 {[%clk
0:02:21.3]} 18... Re8 {[%clk 0:02:35.9]} 19. f6 {[%clk 0:02:18.8]} 19... gxf6
{[%clk 0:02:28.7]} 20. gxf6 {[%clk 0:02:11.7]} 20... Bxf6 {[%clk 0:02:25.8]} 21.
Qg4+ {[%clk 0:02:04.6]} 21... Kh8 {[%clk 0:02:24.3]} 22. Bg5 {[%clk 0:01:28.6]}
22... Bxg5 {[%clk 0:02:11]} 23. hxg5 {[%clk 0:01:27.8]} 23... Rg8 {[%clk
0:02:08.4]} 24. Rxf7 {[%clk 0:01:23.8]} 24... Qxg5 {[%clk 0:02:02.4]} 25. Qxg5
{[%clk 0:00:34.9]} 25... Rxg5 {[%clk 0:02:00.8]} 26. Rh1 {[%clk 0:00:35.5]}
26... Rg7 {[%clk 0:01:57]} 27. Rxg7 {[%clk 0:00:30.3]} 27... Kxg7 {[%clk
0:01:57.9]} 28. Nf5+ {[%clk 0:00:30.4]} 28... Kf6 {[%clk 0:01:56.8]} 29. Nxd6
{[%clk 0:00:30]} 29... Rg8+ {[%clk 0:01:39.5]} 30. Kf3 {[%clk 0:00:25.6]} 30...
Ke5 {[%clk 0:01:25.1]} 31. Nf7+ {[%clk 0:00:19.2]} 31... Ke6 {[%clk 0:01:21.4]}
32. Nh6 {[%clk 0:00:16.6]} 32... Rf8+ {[%clk 0:01:17.9]} 33. Ke3 {[%clk
0:00:16.7]} 33... Nd7 {[%clk 0:01:15.5]} 34. Ng4 {[%clk 0:00:16.6]} 34... Rf7
{[%clk 0:01:13.6]} 35. Rh6+ {[%clk 0:00:17]} 35... Kd5 {[%clk 0:01:10.1]} 36.
Rxa6 {[%clk 0:00:14.7]} 36... h5 {[%clk 0:01:09.9]} 37. Rh6 {[%clk 0:00:13.6]}
37... hxg4 {[%clk 0:01:08.5]} 38. Rg6 {[%clk 0:00:13.9]} 38... Ne5 {[%clk
0:01:05]} 39. Rg5 {[%clk 0:00:14.1]} 39... Rf3+ {[%clk 0:01:04.2]} 40. Ke2
{[%clk 0:00:13.9]} 40... Ke4 {[%clk 0:01:04.3]} 41. b3 {[%clk 0:00:12.5]} 41...
Rh3 {[%clk 0:01:03]} 42. c4 {[%clk 0:00:11.9]} 42... bxc4 {[%clk 0:01:01.8]} 43.
bxc4 {[%clk 0:00:12.1]} 43... Kf4 {[%clk 0:01:02]} 44. Rg8 {[%clk 0:00:11.4]}
44... Nxc4 {[%clk 0:01:01.9]} 45. Rc8 {[%clk 0:00:10.3]} 45... Ne5 {[%clk
0:01:00.8]} 46. Rf8+ {[%clk 0:00:07.5]} 46... Ke4 {[%clk 0:01:00.6]} 47. Rg8
{[%clk 0:00:07.1]} 47... g3 {[%clk 0:01:00.1]} 48. Kf1 {[%clk 0:00:06.4]} 48...
Kf4 {[%clk 0:00:17.2]} 49. Rf8+ {[%clk 0:00:03.1]} 49... Kg4 {[%clk 0:00:17.2]}
50. Rg8+ {[%clk 0:00:03.1]} 50... Kf3 {[%clk 0:00:17.1]} 51. Rf8+ {[%clk
0:00:03]} 51... Kg4 {[%clk 0:00:16]} 52. Rg8+ {[%clk 0:00:02.3]} 52... Kf4
{[%clk 0:00:16.3]} 53. Rf8+ {[%clk 0:00:02.8]} 53... Kg5 {[%clk 0:00:16.7]} 54.
Rg8+ {[%clk 0:00:02.7]} 54... Ng6 {[%clk 0:00:16.6]} 55. Kg2 {[%clk 0:00:02.1]}
55... Kh4 {[%clk 0:00:13.7]} 56. Rxg6 {[%clk 0:00:01.2]} 56... Rh2+ {[%clk
0:00:14]} 57. Kf3 {[%clk 0:00:01.6]} 57... Rf2+ {[%clk 0:00:14]} 58. Ke3 {[%clk
0:00:01.9]} 58... Rxa2 {[%clk 0:00:11.7]} 0-1

[Event "*** SCC Grand Prix: Titled Tuesday Blitz"]
[Site "Chess.com"]
[Date "2020.07.07"]
[Round "9"]
[White "Munkhzul_Turmunkh"]
[Black "jaskol95"]
[Result "1-0"]
[WhiteElo "2600"]
[BlackElo "2401"]
[TimeControl "180+1"]
[EndTime "11:47:59 PDT"]
[Termination "Munkhzul_Turmunkh won by resignation"]

1. e4 {[%clk 0:03:00.9]} 1... e6 {[%clk 0:02:59.5]} 2. d4 {[%clk 0:03:00.4]}
2... d5 {[%clk 0:02:59]} 3. exd5 {[%clk 0:03:00.4]} 3... exd5 {[%clk 0:02:59.1]}
4. Nf3 {[%clk 0:03:00.5]} 4... Bd6 {[%clk 0:02:58.8]} 5. Bd3 {[%clk 0:03:00.2]}
5... Ne7 {[%clk 0:02:59.3]} 6. O-O {[%clk 0:02:56.8]} 6... h6 {[%clk 0:02:59.9]}
7. Re1 {[%clk 0:02:55.4]} 7... O-O {[%clk 0:03:00.1]} 8. h3 {[%clk 0:02:51.7]}
8... c6 {[%clk 0:02:59.3]} 9. Nbd2 {[%clk 0:02:47.7]} 9... Nd7 {[%clk
0:02:56.9]} 10. Nf1 {[%clk 0:02:45.8]} 10... Nf6 {[%clk 0:02:50.5]} 11. Ne5
{[%clk 0:02:45.1]} 11... c5 {[%clk 0:02:38.3]} 12. c3 {[%clk 0:02:44.5]} 12...
cxd4 {[%clk 0:02:36.9]} 13. cxd4 {[%clk 0:02:44.3]} 13... Nc6 {[%clk 0:02:37.5]}
14. Nxc6 {[%clk 0:02:37.3]} 14... bxc6 {[%clk 0:02:37.5]} 15. Bd2 {[%clk
0:02:37.1]} 15... Rb8 {[%clk 0:02:35.3]} 16. b3 {[%clk 0:02:35.7]} 16... Bd7
{[%clk 0:02:26.9]} 17. Qf3 {[%clk 0:02:33.5]} 17... Re8 {[%clk 0:02:24.4]} 18.
Ng3 {[%clk 0:02:26.3]} 18... Qb6 {[%clk 0:02:12.8]} 19. Be3 {[%clk 0:02:15]}
19... a5 {[%clk 0:02:02.5]} 20. Nf5 {[%clk 0:02:14.2]} 20... Bxf5 {[%clk
0:02:01.7]} 21. Qxf5 {[%clk 0:02:13.8]} 21... Qb4 {[%clk 0:01:53]} 22. Red1
{[%clk 0:02:04.9]} 22... a4 {[%clk 0:01:38]} 23. bxa4 {[%clk 0:01:52.6]} 23...
Qxa4 {[%clk 0:01:37]} 24. Bc2 {[%clk 0:01:51.7]} 24... Qc4 {[%clk 0:01:23.5]}
25. Bb3 {[%clk 0:01:46.3]} 25... Qc3 {[%clk 0:01:20.3]} 26. Rac1 {[%clk
0:01:44.8]} 26... Qb4 {[%clk 0:01:16.5]} 27. Rxc6 {[%clk 0:01:43.7]} 27... Rbd8
{[%clk 0:01:01]} 28. Qd3 {[%clk 0:01:33.1]} 28... Bb8 {[%clk 0:00:42.7]} 29. Qc3
{[%clk 0:01:22.4]} 29... Qe7 {[%clk 0:00:36.4]} 30. Bc2 {[%clk 0:01:17.9]} 30...
Ne4 {[%clk 0:00:35.4]} 31. Bxe4 {[%clk 0:01:17.3]} 31... Qxe4 {[%clk 0:00:36.3]}
32. Qd3 {[%clk 0:01:16.5]} 32... Qh4 {[%clk 0:00:32.4]} 33. Qf5 {[%clk
0:01:11.9]} 33... Re7 {[%clk 0:00:25.3]} 34. Rc8 {[%clk 0:01:09.5]} 34... Ree8
{[%clk 0:00:23]} 35. Rxd8 {[%clk 0:01:08.7]} 35... Qxd8 {[%clk 0:00:22.4]} 36.
Rb1 {[%clk 0:01:04.3]} 36... Qa5 {[%clk 0:00:20.5]} 37. Qc2 {[%clk 0:00:59.2]}
37... Bd6 {[%clk 0:00:17.5]} 38. Qd2 {[%clk 0:00:59.1]} 38... Qxd2 {[%clk
0:00:16.4]} 39. Bxd2 {[%clk 0:01:00]} 39... Re2 {[%clk 0:00:16.9]} 40. Rb2
{[%clk 0:00:59.1]} 40... Bf4 {[%clk 0:00:13.3]} 41. Bc3 {[%clk 0:00:58.9]} 41...
Re4 {[%clk 0:00:11.3]} 42. a4 {[%clk 0:00:56.1]} 42... Re6 {[%clk 0:00:10.1]}
43. a5 {[%clk 0:00:55.9]} 43... Rc6 {[%clk 0:00:10.6]} 44. Rb3 {[%clk
0:00:54.3]} 44... Rc4 {[%clk 0:00:09.8]} 45. g3 {[%clk 0:00:44.3]} 45... Bd6
{[%clk 0:00:10]} 46. Kg2 {[%clk 0:00:42]} 46... Ra4 {[%clk 0:00:10]} 47. Rb6
{[%clk 0:00:38.9]} 47... Bc7 {[%clk 0:00:08.8]} 48. Rc6 {[%clk 0:00:39]} 48...
Bxa5 {[%clk 0:00:06.4]} 49. Ra6 {[%clk 0:00:39.2]} 49... Bxc3 {[%clk 0:00:07]}
50. Rxa4 {[%clk 0:00:39.3]} 50... f6 {[%clk 0:00:06.9]} 51. Kf3 {[%clk
0:00:38.8]} 51... Kf7 {[%clk 0:00:07]} 52. Ke2 {[%clk 0:00:39.1]} 52... Ke6
{[%clk 0:00:07.3]} 53. Kd3 {[%clk 0:00:39.4]} 53... Be1 {[%clk 0:00:07.9]} 54.
Ra2 {[%clk 0:00:36.7]} 54... Kf5 {[%clk 0:00:08.1]} 55. Re2 {[%clk 0:00:36.5]}
55... Bb4 {[%clk 0:00:08.2]} 56. Re8 {[%clk 0:00:36.2]} 56... g6 {[%clk
0:00:06.3]} 57. f3 {[%clk 0:00:33.9]} 57... h5 {[%clk 0:00:06.1]} 58. Ke3 {[%clk
0:00:32.8]} 58... g5 {[%clk 0:00:05.8]} 59. g4+ {[%clk 0:00:32.7]} 59... hxg4
{[%clk 0:00:05.6]} 60. hxg4+ {[%clk 0:00:33.6]} 60... Kg6 {[%clk 0:00:06.1]} 61.
Rd8 {[%clk 0:00:33.5]} 61... Ba3 {[%clk 0:00:05.3]} 62. Rxd5 {[%clk 0:00:33]}
62... Kf7 {[%clk 0:00:04.9]} 63. Ra5 {[%clk 0:00:32.3]} 63... Bc1+ {[%clk
0:00:04.4]} 64. Kd3 {[%clk 0:00:32.4]} 64... Ke6 {[%clk 0:00:04.7]} 65. Ke4
{[%clk 0:00:31.7]} 65... Bf4 {[%clk 0:00:04.4]} 66. Ra6+ {[%clk 0:00:31.9]}
66... Kf7 {[%clk 0:00:04.2]} 67. Kf5 {[%clk 0:00:32.1]} 67... Ke7 {[%clk
0:00:04.8]} 68. Ra7+ {[%clk 0:00:31.3]} 68... Kd6 {[%clk 0:00:05]} 69. Kxf6
{[%clk 0:00:31.5]} 69... Kd5 {[%clk 0:00:05.6]} 70. Rd7+ {[%clk 0:00:31.1]}
70... Kc4 {[%clk 0:00:06]} 71. d5 {[%clk 0:00:30.8]} 71... Kc5 {[%clk
0:00:06.7]} 72. d6 {[%clk 0:00:30.5]} 72... Kc6 {[%clk 0:00:07.2]} 73. Rd8
{[%clk 0:00:30.5]} 73... Kc5 {[%clk 0:00:05.2]} 74. Ke6 {[%clk 0:00:30.4]} 74...
Kc6 {[%clk 0:00:05.6]} 75. d7 {[%clk 0:00:30.5]} 75... Kc7 {[%clk 0:00:05.2]}
76. Rc8+ {[%clk 0:00:30.6]} 76... Kb7 {[%clk 0:00:05.3]} 77. d8=Q {[%clk
0:00:30.9]} 1-0

[Event "*** SCC Grand Prix: Titled Tuesday Blitz"]
[Site "Chess.com"]
[Date "2020.07.07"]
[Round "9"]
[White "blitzking1729"]
[Black "ichangedmyname_yup"]
[Result "1-0"]
[WhiteElo "2547"]
[BlackElo "2397"]
[TimeControl "180+1"]
[EndTime "11:47:59 PDT"]
[Termination "blitzking1729 won by resignation"]

1. Nf3 {[%clk 0:02:59.6]} 1... b6 {[%clk 0:02:59.7]} 2. g3 {[%clk 0:02:58.5]}
2... Bb7 {[%clk 0:03:00.2]} 3. Bg2 {[%clk 0:02:58.5]} 3... Nf6 {[%clk
0:03:00.6]} 4. O-O {[%clk 0:02:58.2]} 4... c5 {[%clk 0:03:01.1]} 5. c4 {[%clk
0:02:56.2]} 5... e6 {[%clk 0:03:01.4]} 6. Nc3 {[%clk 0:02:56.3]} 6... a6 {[%clk
0:03:00.9]} 7. b3 {[%clk 0:02:55.7]} 7... d6 {[%clk 0:03:01.2]} 8. Bb2 {[%clk
0:02:55.4]} 8... Be7 {[%clk 0:03:01.6]} 9. Rc1 {[%clk 0:02:55.4]} 9... O-O
{[%clk 0:03:02]} 10. d4 {[%clk 0:02:55.4]} 10... cxd4 {[%clk 0:03:02.9]} 11.
Qxd4 {[%clk 0:02:55.2]} 11... Nbd7 {[%clk 0:03:02.6]} 12. Rfd1 {[%clk
0:02:54.6]} 12... Qc7 {[%clk 0:03:02.9]} 13. Qd2 {[%clk 0:02:51]} 13... Rfe8
{[%clk 0:03:02.6]} 14. e3 {[%clk 0:02:46]} 14... Rad8 {[%clk 0:03:03]} 15. Qe2
{[%clk 0:02:44.3]} 15... Qb8 {[%clk 0:03:03.3]} 16. Nd4 {[%clk 0:02:42.8]} 16...
Bxg2 {[%clk 0:03:01.7]} 17. Kxg2 {[%clk 0:02:42.8]} 17... Rc8 {[%clk 0:03:02.3]}
18. e4 {[%clk 0:02:40.6]} 18... Bf8 {[%clk 0:03:02.2]} 19. Kg1 {[%clk
0:02:38.7]} 19... Qb7 {[%clk 0:03:02.4]} 20. f3 {[%clk 0:02:33.6]} 20... g6
{[%clk 0:02:58.3]} 21. Nc2 {[%clk 0:02:29.9]} 21... Qb8 {[%clk 0:02:39.7]} 22.
Ne3 {[%clk 0:02:27.4]} 22... Bg7 {[%clk 0:02:30.1]} 23. Rd2 {[%clk 0:02:23.9]}
23... d5 {[%clk 0:02:12.3]} 24. cxd5 {[%clk 0:02:21.6]} 24... exd5 {[%clk
0:02:12.3]} 25. Ncxd5 {[%clk 0:02:20.8]} 25... Nxd5 {[%clk 0:02:08.2]} 26. Nxd5
{[%clk 0:02:19.1]} 26... Bxb2 {[%clk 0:02:00.6]} 27. Rxc8 {[%clk 0:02:16.9]}
27... Qxc8 {[%clk 0:01:56.5]} 28. Rxb2 {[%clk 0:02:16]} 28... Qc5+ {[%clk
0:01:57]} 29. Kg2 {[%clk 0:02:13.2]} 29... b5 {[%clk 0:01:52.5]} 30. Rc2 {[%clk
0:02:10.1]} 30... Qd6 {[%clk 0:01:51.9]} 31. Qd2 {[%clk 0:01:59.5]} 31... Nf6
{[%clk 0:01:20.8]} 32. Qb4 {[%clk 0:01:53.3]} 32... Qd8 {[%clk 0:01:15.2]} 33.
Rd2 {[%clk 0:01:47.3]} 33... Nxd5 {[%clk 0:01:12.1]} 34. exd5 {[%clk 0:01:46.8]}
34... Re5 {[%clk 0:01:07.6]} 35. d6 {[%clk 0:01:44.7]} 35... Qd7 {[%clk
0:01:07.7]} 36. Qc3 {[%clk 0:01:39.4]} 36... Re8 {[%clk 0:00:57.5]} 37. g4
{[%clk 0:01:24.2]} 37... Rc8 {[%clk 0:00:54.3]} 38. Qf6 {[%clk 0:01:18]} 38...
Rd8 {[%clk 0:00:53.6]} 39. h4 {[%clk 0:01:13.1]} 39... Re8 {[%clk 0:00:53.4]}
40. Qc3 {[%clk 0:01:00.9]} 40... h6 {[%clk 0:00:48.7]} 41. Qc7 {[%clk
0:00:53.2]} 41... Rd8 {[%clk 0:00:47.2]} 42. Qxd7 {[%clk 0:00:51.3]} 42... Rxd7
{[%clk 0:00:48.1]} 43. g5 {[%clk 0:00:50.9]} 43... hxg5 {[%clk 0:00:46.8]} 44.
hxg5 {[%clk 0:00:51.8]} 44... f6 {[%clk 0:00:40.1]} 45. gxf6 {[%clk 0:00:49.3]}
45... Kf7 {[%clk 0:00:40.5]} 46. Kg3 {[%clk 0:00:49.7]} 46... Kxf6 {[%clk
0:00:40.8]} 47. Kf4 {[%clk 0:00:40.3]} 47... a5 {[%clk 0:00:22.7]} 48. a3 {[%clk
0:00:35.7]} 48... g5+ {[%clk 0:00:10.6]} 49. Kg4 {[%clk 0:00:35.2]} 49... Kg6
{[%clk 0:00:10.7]} 50. Rd5 {[%clk 0:00:34.6]} 50... b4 {[%clk 0:00:08.3]} 51.
axb4 {[%clk 0:00:31.5]} 51... axb4 {[%clk 0:00:08.1]} 52. Rxg5+ {[%clk
0:00:31.1]} 52... Kf6 {[%clk 0:00:08.4]} 53. Rd5 {[%clk 0:00:30.9]} 53... Ke6
{[%clk 0:00:08.6]} 54. Rd4 {[%clk 0:00:30.3]} 54... Ke5 {[%clk 0:00:08.1]} 55.
Re4+ {[%clk 0:00:29.2]} 55... Kf6 {[%clk 0:00:07.5]} 56. Rxb4 {[%clk 0:00:24]}
56... Rxd6 {[%clk 0:00:07.7]} 57. Kf4 {[%clk 0:00:22]} 57... Ke6 {[%clk
0:00:05.9]} 58. Ke4 {[%clk 0:00:21.7]} 58... Kf6 {[%clk 0:00:05.6]} 59. Rc4
{[%clk 0:00:21.1]} 59... Rb6 {[%clk 0:00:03.6]} 60. b4 {[%clk 0:00:21.2]} 60...
Rb5 {[%clk 0:00:03.1]} 61. Kd4 {[%clk 0:00:20]} 61... Rb6 {[%clk 0:00:02.9]} 62.
Kc5 {[%clk 0:00:19.5]} 62... Rb8 {[%clk 0:00:02.7]} 63. b5 {[%clk 0:00:19.8]}
63... Ke5 {[%clk 0:00:03]} 64. b6 {[%clk 0:00:17.4]} 64... Ke6 {[%clk
0:00:03.3]} 65. Kb5 {[%clk 0:00:16.6]} 65... Kd7 {[%clk 0:00:03.6]} 66. f4
{[%clk 0:00:15.7]} 66... Kd8 {[%clk 0:00:03.4]} 67. f5 {[%clk 0:00:15.7]} 67...
Kd7 {[%clk 0:00:04]} 68. Rd4+ {[%clk 0:00:14.9]} 68... Kc8 {[%clk 0:00:03.4]}
69. Kc6 {[%clk 0:00:13.8]} 69... Rb7 {[%clk 0:00:01.9]} 70. Rd8+ {[%clk
0:00:13.3]} 70... Kxd8 {[%clk 0:00:02.1]} 71. Kxb7 {[%clk 0:00:13.7]} 1-0

[Event "*** SCC Grand Prix: Titled Tuesday Blitz"]
[Site "Chess.com"]
[Date "2020.07.07"]
[Round "9"]
[White "gui_borba"]
[Black "RaphCamora"]
[Result "1-0"]
[WhiteElo "2362"]
[BlackElo "2447"]
[TimeControl "180+1"]
[EndTime "11:48:03 PDT"]
[Termination "gui_borba won on time"]

1. d4 {[%clk 0:03:00.9]} 1... d5 {[%clk 0:02:58.2]} 2. Bf4 {[%clk 0:02:53.2]}
2... Nf6 {[%clk 0:02:57.4]} 3. e3 {[%clk 0:02:52.1]} 3... c5 {[%clk 0:02:57.3]}
4. c3 {[%clk 0:02:51.7]} 4... Nc6 {[%clk 0:02:56.1]} 5. Bd3 {[%clk 0:02:48]}
5... Qb6 {[%clk 0:02:52.5]} 6. Qc1 {[%clk 0:02:44]} 6... e6 {[%clk 0:02:37]} 7.
Nf3 {[%clk 0:02:42.9]} 7... Be7 {[%clk 0:02:37.1]} 8. Nbd2 {[%clk 0:02:41.6]}
8... O-O {[%clk 0:02:36.8]} 9. O-O {[%clk 0:02:41.7]} 9... Bd7 {[%clk
0:02:36.1]} 10. h3 {[%clk 0:02:41.8]} 10... Rfc8 {[%clk 0:02:34.8]} 11. Qb1
{[%clk 0:02:33.8]} 11... h6 {[%clk 0:02:20.8]} 12. Ne5 {[%clk 0:02:33.3]} 12...
Be8 {[%clk 0:02:19.3]} 13. a3 {[%clk 0:02:27.4]} 13... a5 {[%clk 0:02:18.8]} 14.
a4 {[%clk 0:02:26.5]} 14... c4 {[%clk 0:02:08.9]} 15. Bc2 {[%clk 0:02:23]} 15...
Nxe5 {[%clk 0:02:08.6]} 16. Bxe5 {[%clk 0:02:22.8]} 16... Nd7 {[%clk 0:01:49.9]}
17. Bg3 {[%clk 0:02:20.4]} 17... f5 {[%clk 0:01:48.8]} 18. Nf3 {[%clk
0:02:18.6]} 18... Bd6 {[%clk 0:01:36.4]} 19. Bxd6 {[%clk 0:02:09.7]} 19... Qxd6
{[%clk 0:01:34.8]} 20. Qd1 {[%clk 0:02:04.7]} 20... Bh5 {[%clk 0:01:34]} 21. g4
{[%clk 0:01:55.9]} 21... fxg4 {[%clk 0:01:25.1]} 22. Nh2 {[%clk 0:01:56.1]}
22... e5 {[%clk 0:00:42.6]} 23. hxg4 {[%clk 0:01:40.8]} 23... Bf7 {[%clk
0:00:41.2]} 24. Qf3 {[%clk 0:01:33.7]} 24... e4 {[%clk 0:00:38.4]} 25. Qg2
{[%clk 0:01:32.1]} 25... Bg6 {[%clk 0:00:23.1]} 26. f4 {[%clk 0:01:04.6]} 26...
exf3 {[%clk 0:00:22.2]} 27. Nxf3 {[%clk 0:01:03.5]} 27... Re8 {[%clk 0:00:18.6]}
28. Bxg6 {[%clk 0:00:58]} 28... Qxg6 {[%clk 0:00:17.8]} 29. Rae1 {[%clk
0:00:58.6]} 29... Re7 {[%clk 0:00:17.8]} 30. Nh4 {[%clk 0:00:56.3]} 30... Qg5
{[%clk 0:00:17]} 31. Nf5 {[%clk 0:00:57.2]} 31... Re4 {[%clk 0:00:15.7]} 32. Rf4
{[%clk 0:00:53.5]} 32... Rae8 {[%clk 0:00:16]} 33. Ref1 {[%clk 0:00:47.5]} 33...
Nf6 {[%clk 0:00:15.1]} 34. Nd6 {[%clk 0:00:41.7]} 34... Rxe3 {[%clk 0:00:13.3]}
35. Nxe8 {[%clk 0:00:40]} 35... Rxe8 {[%clk 0:00:14.2]} 36. Rf5 {[%clk
0:00:36.1]} 36... Qe3+ {[%clk 0:00:13.8]} 37. Kh2 {[%clk 0:00:30.8]} 37... Qd3
{[%clk 0:00:11.1]} 38. R1f3 {[%clk 0:00:29.9]} 38... Qe4 {[%clk 0:00:09.7]} 39.
Kh3 {[%clk 0:00:25.4]} 39... Re6 {[%clk 0:00:06.5]} 40. g5 {[%clk 0:00:24.2]}
40... Nh5 {[%clk 0:00:05.1]} 41. g6 {[%clk 0:00:20.4]} 41... Nf6 {[%clk
0:00:04.7]} 42. R3f4 {[%clk 0:00:17.3]} 42... Qe3+ {[%clk 0:00:04.8]} 43. Qf3
{[%clk 0:00:15.6]} 43... Qxf3+ {[%clk 0:00:04.9]} 44. Rxf3 {[%clk 0:00:16.5]}
44... Kf8 {[%clk 0:00:05.3]} 45. Kh4 {[%clk 0:00:16.4]} 45... Ke7 {[%clk
0:00:05.9]} 46. Kg3 {[%clk 0:00:15.4]} 46... Re4 {[%clk 0:00:06.4]} 47. Kf2
{[%clk 0:00:15.2]} 47... Rh4 {[%clk 0:00:06]} 48. Re3+ {[%clk 0:00:15.2]} 48...
Kd6 {[%clk 0:00:06.1]} 49. Ke2 {[%clk 0:00:15.5]} 49... Ne4 {[%clk 0:00:06.3]}
50. Rf7 {[%clk 0:00:13.3]} 50... Rh2+ {[%clk 0:00:06.8]} 51. Kf3 {[%clk
0:00:12.7]} 51... Rf2+ {[%clk 0:00:06.5]} 52. Kg4 {[%clk 0:00:13.1]} 52... Rg2+
{[%clk 0:00:05.8]} 53. Kh3 {[%clk 0:00:12.8]} 53... Rxg6 {[%clk 0:00:05.8]} 54.
Rxb7 {[%clk 0:00:12.6]} 54... Rg5 {[%clk 0:00:05]} 55. Rb6+ {[%clk 0:00:12.4]}
55... Kc7 {[%clk 0:00:04.1]} 56. Rb5 {[%clk 0:00:13.3]} 56... Kc6 {[%clk
0:00:03.7]} 57. Rxa5 {[%clk 0:00:13.5]} 57... Rf5 {[%clk 0:00:04]} 58. Kg2
{[%clk 0:00:11.7]} 58... Rf2+ {[%clk 0:00:03.2]} 59. Kg1 {[%clk 0:00:12]} 59...
Rxb2 {[%clk 0:00:04.1]} 60. Ra7 {[%clk 0:00:12.2]} 60... Rb3 {[%clk 0:00:03.5]}
61. Rxg7 {[%clk 0:00:10.7]} 61... Nxc3 {[%clk 0:00:03.1]} 62. Rg6+ {[%clk
0:00:08.4]} 62... Kb7 {[%clk 0:00:02.8]} 63. Rxh6 {[%clk 0:00:09.3]} 63... Nxa4
{[%clk 0:00:02.4]} 64. Re7+ {[%clk 0:00:07.3]} 64... Ka8 {[%clk 0:00:02.4]} 65.
Rh8+ {[%clk 0:00:07.2]} 65... Rb8 {[%clk 0:00:01.5]} 66. Rxb8+ {[%clk
0:00:05.9]} 66... Kxb8 {[%clk 0:00:01.5]} 67. Kf2 {[%clk 0:00:06.8]} 67... c3
{[%clk 0:00:01.3]} 68. Ke2 {[%clk 0:00:06.8]} 1-0